bitfinex/quotes_ETHUSD_20220227
["timestamp","ask_amount","ask_price","bid_price","bid_amount"]
[1645990935174,1.28394741,2657.3,2657.2,2.54697]
[1645990935375,0.00663593,2658.6,2657.5,0.3646]
[1645990935578,0.1504,2659.1,2657.5,11.8446]
[1645990935876,0.00611548,2658.3,2657.5,12.1446]
[1645990936073,0.00611548,2658.3,2657.6,11.919]
[1645990936476,0.00611548,2658.3,2657.7,12.89795579]
[1645990936711,0.00611548,2658.3,2657.7,13.19795579]
[1645990936911,3.5,2659.3,2657.7,11.78]
[1645990937211,0.00611709,2658.3,2657.8,0.3646]
[1645990937613,0.00611709,2658.3,2657.9,11.48]
[1645990938015,10.8,2659.4,2658.0,1.70224688]
[1645990938221,0.00611732,2658.3,2658.0,1.33764688]
[1645990938435,0.00611732,2658.3,2658.0,1.18724688]
[1645990938619,0.00611732,2658.3,2658.0,1.48724688]
[1645990939219,3.5,2659.1,2658.0,1.48724688]
[1645990939419,0.00616943,2658.3,2658.0,1.48724688]
[1645990940458,7.4504,2659.4,2658.1,0.515]
[1645990940459,7.3,2659.4,2658.1,0.515]
[1645990940861,7.3,2659.4,2658.1,0.815]
[1645990940862,0.0062018,2658.3,2658.1,0.815]
[1645990941662,7.96927183,2659.4,2658.9,1.19226631]
[1645990942260,0.52100843,2658.8,2658.1,0.815]
[1645990942861,0.52100843,2658.8,2658.1,0.87005021]
[1645990943060,0.0062018,2658.6,2658.5,1.25934195]
[1645990943961,0.52100843,2658.8,2658.5,1.25934195]
[1645990944201,0.00620257,2658.7,2658.3,0.00432694]
[1645990944404,3.50620257,2658.7,2658.3,0.00432694]
[1645990944611,0.37080257,2658.7,2658.3,0.00432694]
[1645990945005,0.00620257,2658.7,2658.3,0.00432694]
[1645990945205,0.52100843,2658.8,2658.2,0.00146548]
[1645990945604,0.00620257,2658.6,2658.2,0.00579247]
[1645990946405,0.1504,2658.7,2658.2,0.00146548]
[1645990946806,0.88560843,2658.8,2658.2,0.00146548]
[1645990946807,0.00620258,2658.5,2658.2,0.00146548]
[1645990947605,0.88560843,2658.8,2658.2,0.00146548]
[1645990947807,0.3646,2658.6,2658.2,0.00146548]
[1645990948058,0.3646,2658.4,2658.2,0.00146548]
[1645990948260,0.3646,2658.3,2658.1,0.00432724]
[1645990948664,0.515,2658.2,2658.1,0.00432724]
[1645990948862,0.515,2658.2,2657.2,1.1326411]
[1645990949264,1.30626,2658.1,2657.9,0.00432748]
[1645990949962,0.3646,2658.1,2657.9,0.00432748]
[1645990950363,0.3646,2658.1,2657.7,0.00432781]
[1645990951266,0.00619755,2658.3,2657.1,0.15299732]
[1645990951267,1.73455914,2658.0,2657.1,0.1504]
[1645990951463,1.73455914,2658.0,2657.0,0.25]
[1645990951464,1.36995914,2657.9,2657.4,1.31798245]
[1645990951706,1.36995914,2657.9,2657.6,0.00389517]
[1645990951897,0.3646,2658.0,2657.6,0.00389517]
[1645990952199,0.00619247,2658.3,2657.6,0.00389517]
[1645990952200,1.734597,2657.9,2657.6,0.00389517]
[1645990952402,1.734597,2657.8,2657.0,0.25]
[1645990952601,0.3646,2657.8,2657.0,0.25]
[1645990952801,0.3646,2657.8,2657.5,0.00389532]
[1645990953401,0.3646,2658.1,2657.5,0.00389532]
[1645990953602,0.3646,2657.9,2657.5,9.532e-05]
[1645990953811,0.3646,2657.9,2656.6,0.5]
[1645990953812,16.84296573,2657.6,2656.6,0.5]
[1645990954004,6.23594392,2657.8,2655.4,0.68300025]
[1645990954005,11.8446,2657.3,2657.1,0.00233759]
[1645990954203,16.71397265,2657.2,2657.1,0.00233759]
[1645990954404,1.88437265,2657.2,2657.1,0.00233759]
[1645990954805,1.88437265,2657.2,2656.6,1.30200877]
[1645990955009,0.3646,2657.2,2656.5,0.25]
[1645990955206,0.3646,2657.4,2656.9,0.00129875]
[1645990955455,1.45231431,2657.3,2656.9,0.00129875]
[1645990955657,0.94185,2657.5,2656.9,0.00129875]
[1645990955658,0.3646,2657.5,2656.9,0.00129875]
[1645990955959,20.0,2657.3,2655.8,6.15777115]
[1645990956161,20.0,2657.3,2655.6,0.25]
[1645990956162,4.99836573,2656.0,2655.6,0.25]
[1645990956383,1.45221912,2655.9,2654.0,14.01431623]
[1645990956668,0.3646,2655.7,2654.9,5.75]
[1645990956867,0.3646,2655.5,2654.9,3.25]
[1645990957066,0.94242,2655.8,2654.9,3.0]
[1645990957967,0.1506,2655.7,2654.9,3.0]
[1645990958366,0.3646,2655.6,2654.9,3.0]
[1645990958567,0.3646,2655.4,2654.9,3.0]
[1645990958766,0.3646,2655.2,2655.0,0.00401326]
[1645990958970,3.8646,2655.1,2655.0,0.00401326]
[1645990959215,0.3646,2655.1,2655.0,0.00401326]
[1645990959407,0.5152,2655.1,2655.0,0.00401326]
[1645990959609,1.45789,2655.1,2655.0,0.00401326]
[1645990959809,4.95789,2655.1,2654.9,3.0]
[1645990960011,18.0,2654.9,2654.8,0.00126095]
[1645990960319,18.0,2654.9,2653.0,0.55111143]
[1645990960320,0.00191529,2654.7,2653.2,0.25]
[1645990960719,0.94490529,2654.7,2652.6,5.439]
[1645990960918,0.15261529,2654.7,2653.1,0.0120957]
[1645990961117,0.00191529,2654.7,2653.2,0.23020499]
[1645990961417,0.00191529,2654.7,2653.2,5.1507]
[1645990961620,0.00191529,2654.7,2653.2,5.4507]
[1645990961816,0.00191529,2654.7,2653.2,5.1507]
[1645990962017,0.00191529,2654.7,2653.2,6.3934]
[1645990962218,0.00191529,2654.7,2653.3,0.3646]
[1645990962418,0.00191529,2654.7,2653.4,0.1507]
[1645990962620,0.00191529,2654.7,2653.5,0.3646]
[1645990962818,0.00191529,2654.7,2653.6,0.1507]
[1645990963449,0.00191529,2654.7,2653.3,2.5]
[1645990963650,0.00191529,2654.7,2653.9,0.00393616]
[1645990964155,0.5896,2654.6,2653.9,0.00393616]
[1645990964351,3.5,2654.5,2653.9,0.00393616]
[1645990964552,1.88616,2654.4,2653.2,0.25]
[1645990964756,1.88616,2654.4,2653.8,1.14709285]
[1645990964956,1.88616,2654.4,2654.0,0.00393594]
[1645990965757,5.38616,2654.4,2653.4,0.02120222]
[1645990965957,2.03686,2654.4,2653.9,0.00393609]
[1645990966354,0.1507,2654.4,2653.9,0.00393609]
[1645990966558,1.53273,2654.4,2653.9,0.00393609]
[1645990967002,1.53273,2654.4,2653.4,0.02120222]
[1645990967003,0.5897,2654.4,2653.4,0.02120222]
[1645990967202,0.5897,2654.4,2653.9,0.00393616]
[1645990967203,0.439,2654.4,2653.9,0.00393616]
[1645990967606,0.9431256,2654.3,2653.9,0.00393616]
[1645990968204,0.1507,2654.2,2653.4,0.02120222]
[1645990968407,0.1507,2654.2,2653.9,0.00151339]
[1645990968612,1.88608,2654.5,2653.9,0.00151339]
[1645990969611,1.88608,2654.5,2653.9,0.00544948]
[1645990970112,11.48,2654.4,2653.9,0.00544948]
[1645990970312,0.3646,2654.3,2653.9,0.00544948]
[1645990970554,0.3646,2654.1,2653.9,0.00151339]
[1645990970756,10.5,2653.9,2653.2,0.18450833]
[1645990970966,11.8446,2653.6,2652.0,0.25]
[1645990971157,0.3646,2653.4,2652.0,0.25]
[1645990971961,0.3646,2653.4,2652.1,0.1507]
[1645990972159,1.3079,2653.5,2652.1,0.1507]
[1645990972357,1.3079,2653.5,2652.8,1.41690401]
[1645990974405,0.8079,2653.5,2652.8,1.41690401]
[1645990974902,1.69671248,2652.6,2652.2,0.04035807]
[1645990975105,0.13819996,2653.8,2652.5,0.3646]
[1645990975403,0.13819996,2653.8,2652.4,9.3646]
[1645990975606,0.13819996,2653.8,2652.4,0.3646]
[1645990975902,0.13819996,2653.8,2652.4,0.5153]
[1645990976110,0.3646,2653.4,2652.4,0.1507]
[1645990976304,0.3646,2653.3,2652.2,0.1507]
[1645990976505,3.8646,2653.3,2652.2,0.1507]
[1645990976704,4.0153,2653.3,2652.1,0.04092649]
[1645990976902,15.4953,2653.3,2652.6,0.00354421]
[1645990977105,15.4953,2653.3,2652.9,1.21072245]
[1645990977106,4.0153,2653.3,2652.9,1.21072245]
[1645990977307,0.5153,2653.3,2652.6,0.00354421]
[1645990977503,4.0153,2653.3,2652.6,0.00354421]
[1645990977703,4.95868,2653.3,2652.6,0.00354421]
[1645990977949,4.95868,2653.3,2652.7,0.00111675]
[1645990977950,4.59408,2653.3,2652.7,0.00111675]
[1645990978252,0.1507,2653.3,2652.7,0.00111675]
[1645990978456,3.5,2653.6,2652.7,0.00111675]
[1645990979054,0.3646,2653.6,2652.3,0.00194905]
[1645990979255,0.94326,2653.6,2652.9,0.00111667]
[1645990979455,0.1507,2653.7,2652.9,0.00111667]
[1645990979754,0.13819996,2653.8,2652.9,0.00111667]
[1645990980253,0.28889996,2653.8,2652.3,0.00194905]
[1645990980454,0.28889996,2653.8,2653.1,0.00354361]
[1645990980854,0.13819996,2653.8,2653.1,0.00354361]
[1645990981455,0.13819996,2653.8,2652.4,0.1507]
[1645990981706,1.30787,2653.6,2653.2,0.00354348]
[1645990981904,0.94327,2653.6,2653.2,1.2615481]
[1645990982715,0.94327,2653.6,2653.2,1.25800462]
[1645990984814,0.94327,2653.6,2651.4,0.007]
[1645990984815,0.3646,2653.3,2651.4,0.007]
[1645990985014,4.99836573,2652.2,2650.6,0.5]
[1645990985221,3.5,2652.1,2650.6,0.75]
[1645990985462,3.5,2652.1,2650.6,0.25]
[1645990985463,3.939,2652.1,2650.6,0.25]
[1645990986059,0.944,2651.6,2650.6,0.25]
[1645990986259,0.439,2651.7,2650.6,0.25]
[1645990986457,0.439,2651.6,2650.6,0.25]
[1645990986860,0.1507,2651.5,2650.6,0.25]
[1645990987060,0.1507,2651.5,2651.1,1.20811526]
[1645990987261,0.94401,2651.4,2650.6,0.25]
[1645990987661,0.94401,2651.4,2650.8,0.00101356]
[1645990988062,3.5,2651.3,2650.8,0.00101356]
[1645990988261,0.94401,2651.4,2650.8,0.00101356]
[1645990988462,0.8036,2651.3,2650.8,0.00101356]
[1645990988661,3.8646,2651.2,2650.6,0.25]
[1645990988862,0.9441,2651.1,2650.8,0.00319202]
[1645990989310,1.3087,2651.1,2650.8,0.00319202]
[1645990989510,0.9441,2651.1,2650.8,0.00319202]
[1645990989912,0.1524,2651.3,2650.5,1.33901907]
[1645990990115,0.1524,2651.3,2650.7,0.00319214]
[1645990990312,1.8883312,2651.1,2650.7,0.00319214]
[1645990990518,0.3646,2650.9,2650.7,0.00319214]
[1645990990715,11.8446,2650.7,2650.4,0.00191548]
[1645990990913,0.25521352,2651.0,2650.4,0.00191548]
[1645990990914,11.8446,2650.5,2650.4,0.00191548]
[1645990991118,15.7836,2650.5,2650.0,0.25]
[1645990991314,11.8446,2650.1,2649.7,0.08687374]
[1645990991517,12.78924,2650.1,2649.7,0.08687374]
[1645990992218,12.78924,2650.1,2649.3,0.25]
[1645990992219,0.3646,2649.9,2649.3,0.25]
[1645990992417,0.3646,2649.6,2649.4,1.19629376]
[1645990992614,0.94467,2649.5,2649.4,1.19629376]
[1645990992817,0.94467,2649.5,2648.6,0.25]
[1645990992818,9.0,2649.3,2648.6,0.17304032]
[1645990993065,0.58148189,2649.7,2648.6,0.02214032]
[1645990993066,14.68377251,2649.7,2648.6,0.02214032]
[1645990993256,14.68377251,2649.7,2647.9,0.07345732]
[1645990993257,0.94498,2649.5,2647.9,0.07345732]
[1645990993453,11.48,2649.4,2648.1,0.25]
[1645990993652,11.8446,2649.0,2648.1,1.40083668]
[1645990993855,0.3646,2649.0,2648.1,1.40083668]
[1645990994054,0.94492,2649.1,2648.1,1.40083668]
[1645990994256,0.94492,2649.1,2648.1,5.25]
[1645990994454,0.94492,2649.1,2648.1,0.25]
[1645990994455,4.44492,2649.1,2648.1,0.25]
[1645990994653,0.3646,2648.9,2648.1,0.25]
[1645990994861,2.32921,2648.8,2648.0,0.1509]
[1645990995064,0.9452261,2648.6,2647.7,1.39519128]
[1645990995263,0.439,2648.5,2648.1,6.37041629]
[1645990995461,0.439,2648.5,2648.1,1.37041629]
[1645990995666,0.432,2648.5,2647.7,1.34519128]
[1645990996264,3.5,2648.3,2647.4,0.25]
[1645990996463,1.3771,2648.5,2647.6,5.0]
[1645990996464,0.439,2648.2,2647.6,5.0]
[1645990996700,0.26842895,2648.4,2647.1,0.151]
[1645990996905,0.439,2648.4,2647.6,5.0]
[1645990997108,0.439,2648.4,2646.9,0.170082]
[1645990997306,0.94516,2648.2,2646.9,0.170082]
[1645990997505,1.38416,2648.2,2647.6,5.0]
[1645990997706,1.38416,2648.2,2647.8,1.01454244]
[1645990997906,1.38416,2648.2,2647.9,5.0]
[1645990998106,1.38416,2648.2,2647.8,5.0]
[1645990998506,1.38416,2648.2,2646.9,0.170082]
[1645990998707,1.38416,2648.2,2647.0,5.004155]
[1645990998910,4.5961467,2648.5,2648.2,1.037]
[1645990998911,0.1509,2648.5,2648.2,1.037]
[1645990999116,0.2269,2649.1,2648.4,5.0]
[1645990999315,0.2269,2649.1,2648.2,1.037]
[1645990999511,0.2269,2649.1,2648.9,5.0]
[1645990999914,0.151,2649.7,2648.9,5.0]
[1645990999915,0.151,2649.7,2649.0,1.37788611]
[1645991000118,0.1509,2650.0,2649.6,5.0]
[1645991000315,1.06793174,2650.6,2649.0,1.37788611]
[1645991000316,0.1509,2650.4,2649.0,1.37788611]
[1645991000589,0.1509,2650.4,2649.0,1.67788611]
[1645991000787,0.1509,2650.5,2649.0,1.67788611]
[1645991000994,0.45170374,2651.3,2650.4,6.22833953]
[1645991001196,0.5742163,2652.0,2650.5,5.0]
[1645991001197,0.1509,2651.1,2650.5,5.0]
[1645991001391,1.88808,2651.6,2650.4,1.22833953]
[1645991001591,1.83808,2651.6,2650.5,5.0]
[1645991001788,1.83808,2651.6,2650.4,1.22833953]
[1645991001987,1.83808,2651.6,2649.9,0.25]
[1645991001988,1.31960018,2650.4,2649.9,0.25]
[1645991002189,1.31960018,2650.4,2650.3,5.0]
[1645991002389,0.31960018,2650.4,2650.3,5.0]
[1645991002589,0.9441,2651.2,2650.3,5.0]
[1645991002789,0.1509,2651.5,2651.1,5.0]
[1645991002991,2.0342223,2652.6,2650.3,0.3]
[1645991002992,1.97778577,2652.8,2651.4,5.0]
[1645991003194,1.97778577,2652.8,2651.0,5.0]
[1645991003195,1.96485743,2652.8,2652.7,5.0]
[1645991003594,3.39595401,2652.0,2651.3,0.18008108]
[1645991003790,3.39595401,2652.0,2651.2,1.4159743]
[1645991004089,3.39595401,2652.0,2651.6,1.25505135]
[1645991004325,3.39595401,2652.0,2651.7,1.35845546]
[1645991004933,0.1507,2652.7,2651.7,1.35845546]
[1645991005133,1.96485743,2652.8,2652.6,0.75505135]
[1645991005333,1.96485743,2652.8,2652.7,1.25767764]
[1645991005537,1.96485743,2652.8,2652.6,0.75505135]
[1645991005937,1.96485743,2652.8,2651.9,0.00240494]
[1645991006144,1.96485743,2652.8,2652.7,0.75505135]
[1645991006536,1.96485743,2652.8,2652.7,1.94920515]
[1645991006736,1.96485743,2652.8,2652.7,1.1941538]
[1645991007735,1.96485743,2652.8,2652.7,1.94920515]
[1645991008348,1.96485743,2652.8,2652.7,1.1941538]
[1645991008551,1.96485743,2652.8,2652.7,1.94920515]
[1645991009355,1.96485743,2652.8,2652.7,1.1941538]
[1645991009554,1.96485743,2652.8,2652.7,1.94920515]
[1645991009955,1.96485743,2652.8,2652.7,1.1941538]
[1645991010356,0.94332,2653.4,2652.8,13.9648]
[1645991010565,0.00666479,2653.0,2652.8,13.9648]
[1645991010760,6.479e-05,2653.0,2652.8,13.9648]
[1645991010956,6.479e-05,2653.0,2652.8,1.7608]
[1645991011559,0.94343,2653.1,2652.8,2.51585135]
[1645991011844,0.94343,2653.1,2652.8,3.20095527]
[1645991011845,4.44343,2653.1,2652.8,3.20095527]
[1645991012033,4.44343,2653.1,2652.8,3.95600662]
[1645991012034,0.94343,2653.1,2652.8,3.95600662]
[1645991012334,0.01267464,2653.6,2652.8,3.95600662]
[1645991012335,0.1507,2653.3,2652.8,3.20095527]
[1645991012535,0.1507,2653.6,2653.0,0.75505135]
[1645991012734,3.26922,2653.9,2653.0,0.75505135]
[1645991012939,0.00666495,2653.1,2652.8,3.95600662]
[1645991013140,0.00666495,2653.1,2652.8,2.51585135]
[1645991013339,6.495e-05,2653.1,2653.0,0.75505135]
[1645991014139,1.44846663,2654.2,2653.0,0.75505135]
[1645991014140,1.59916663,2654.2,2653.0,0.75505135]
[1645991014341,3.5,2654.1,2653.0,0.75505135]
[1645991014545,0.1507,2654.0,2653.2,0.75505135]
[1645991014738,0.1507,2654.0,2652.8,1.7608]
[1645991014739,1.00410665,2653.1,2652.8,1.7608]
[1645991014946,1.00410665,2653.1,2652.8,0.06343353]
[1645991015346,1.00410665,2653.1,2653.0,0.75505135]
[1645991015563,1.00410665,2653.1,2653.0,1.88936687]
[1645991016964,0.59297988,2652.8,2652.6,1.40526372]
[1645991017163,1.00410665,2653.1,2652.6,1.40526372]
[1645991017365,1.00410665,2653.1,2652.8,5.0]
[1645991017566,1.00410665,2653.1,2652.8,0.3]
[1645991018365,1.00410665,2653.1,2652.7,0.1507]
[1645991018564,1.00410665,2653.1,2652.6,1.40526372]
[1645991018965,1.00410665,2653.1,2652.7,0.0032866]
[1645991019426,6.6e-07,2653.2,2652.9,5.0]
[1645991019624,6.6e-07,2653.2,2653.1,5.0]
[1645991019822,0.3311,2654.3,2653.1,5.3]
[1645991020022,0.3311,2654.3,2653.2,0.1507]
[1645991020422,0.3311,2654.3,2653.2,5.1507]
[1645991020623,0.3311,2654.3,2653.8,1.28217886]
[1645991021625,0.3311,2654.3,2653.2,1.09345]
[1645991021626,0.3311,2654.3,2653.3,0.3646]
[1645991021829,0.3311,2654.3,2653.4,0.1507]
[1645991022426,0.3311,2654.3,2653.3,0.1507]
[1645991022626,0.00670102,2654.0,2653.6,0.00370418]
[1645991022975,0.22876102,2654.3,2653.7,1.80641436]
[1645991023366,0.22876102,2654.3,2653.7,1.44181436]
[1645991023970,0.22876102,2654.3,2653.7,1.24181436]
[1645991024570,0.22876102,2654.3,2653.7,1.60641436]
[1645991024969,0.22876102,2654.3,2653.7,1.24181436]
[1645991025470,0.22876102,2654.3,2654.1,1.23908051]
[1645991025670,1.59577208,2653.8,2653.6,0.3646]
[1645991025872,1.59577208,2653.8,2653.7,0.1507]
[1645991026072,1.59577208,2653.8,2653.4,0.1507]
[1645991026570,1.59577208,2653.8,2653.4,1.29010165]
[1645991026807,1.59577208,2653.8,2653.5,0.1507]
[1645991028213,1.59577208,2653.8,2653.0,5.02493312]
[1645991028214,1.59577208,2653.8,2653.0,0.25]
[1645991028811,1.96037208,2653.8,2653.4,0.00412337]
[1645991029413,1.96037208,2653.8,2653.0,0.25]
[1645991029812,1.96037208,2653.8,2653.3,0.00412345]
[1645991030016,11.8446,2653.6,2653.3,0.00412345]
[1645991030217,0.66485717,2653.7,2653.3,0.00412345]
[1645991030218,15.3446,2653.5,2653.3,0.00412345]
[1645991030477,0.439,2653.7,2653.3,0.00412345]
[1645991030478,0.3646,2653.4,2653.3,0.00412345]
[1645991030667,0.3646,2653.4,2653.0,0.25]
[1645991030866,0.3646,2653.4,2651.8,0.1507]
[1645991031071,0.3646,2653.7,2653.1,0.00412376]
[1645991031469,1.59577208,2653.8,2653.1,0.00412376]
[1645991031869,1.59577208,2653.8,2652.5,0.1507]
[1645991032067,1.59577208,2653.8,2652.6,0.94295]
[1645991032272,0.00176405,2652.9,2652.7,0.1507]
[1645991032472,0.00176405,2652.9,2652.3,0.1507]
[1645991033067,0.00176405,2652.9,2652.1,1.09385]
[1645991033267,0.00176405,2652.9,2652.5,1.09418268]
[1645991033670,0.00176405,2652.9,2652.1,1.09385]
[1645991034924,0.00176405,2652.9,2652.2,1.09372229]
[1645991035118,0.00176405,2652.9,2652.5,0.94298]
[1645991035119,6.405e-05,2652.9,2652.5,0.94298]
[1645991035523,6.405e-05,2652.9,2652.5,1.24298]
[1645991035721,6.405e-05,2652.9,2652.6,0.3646]
[1645991035925,6.405e-05,2652.9,2652.8,5.3646]
[1645991036126,6.405e-05,2652.9,2652.8,21.77606044]
[1645991036322,6.405e-05,2652.9,2652.8,18.76368108]
[1645991036722,1.60247077,2653.8,2652.8,18.76368108]
[1645991036723,1.59577208,2653.8,2652.8,7.28368108]
[1645991036923,1.59577208,2653.8,2653.2,0.3646]
[1645991037124,1.60247115,2653.8,2653.2,0.8036]
[1645991037324,1.60247115,2653.8,2653.4,0.3646]
[1645991037723,1.60247115,2653.8,2653.5,0.18008108]
[1645991037970,1.59577208,2653.8,2653.5,0.18008108]
[1645991038267,1.59577208,2653.8,2653.3,1.6599065]
[1645991038268,1.60247303,2653.8,2653.3,1.6599065]
[1645991038466,1.60247303,2653.8,2653.3,1.3599065]
[1645991038669,1.60247303,2653.8,2653.1,0.00386608]
[1645991039065,1.59577208,2653.8,2652.8,0.3646]
[1645991039473,1.60247266,2653.8,2653.1,0.00386608]
[1645991039874,1.60247266,2653.8,2653.7,1.35320494]
[1645991040274,1.45247266,2653.8,2653.1,0.00386608]
[1645991040475,1.44577208,2653.8,2653.5,0.3646]
[1645991040879,1.44577208,2653.8,2653.5,0.6646]
[1645991041385,1.44577208,2653.8,2653.6,1.02090884]
[1645991041811,1.4524731,2653.8,2653.6,1.02090884]
[1645991042815,1.44577208,2653.8,2653.6,1.02090884]
[1645991043013,1.4524731,2653.8,2653.6,1.32090884]
[1645991043923,1.44577208,2653.8,2653.6,1.32090884]
[1645991044119,1.44577208,2653.8,2653.6,4.62090884]
[1645991044320,1.4524731,2653.8,2653.6,4.62090884]
[1645991045125,1.44577208,2653.8,2653.6,4.62090884]
[1645991045471,1.4524731,2653.8,2653.6,4.62090884]
[1645991046280,0.65575647,2654.6,2653.7,5.3646]
[1645991046478,0.55243963,2654.7,2653.8,15.3446]
[1645991046479,1.30424541,2654.7,2653.8,15.3446]
[1645991046679,1.46469474,2655.3,2654.0,0.3646]
[1645991046680,1.30424541,2654.6,2654.0,0.3646]
[1645991046882,1.30424541,2654.5,2654.2,5.3]
[1645991047078,1.30424541,2654.4,2654.2,0.3]
[1645991047279,0.65575647,2654.8,2654.3,0.74152786]
[1645991047478,0.62797995,2654.8,2654.3,0.74152786]
[1645991047880,1.2961675,2654.7,2654.3,0.74152786]
[1645991048081,1.2961675,2654.6,2654.3,0.74152786]
[1645991048280,1.2961675,2654.5,2654.3,0.74152786]
[1645991048478,0.89053922,2655.1,2654.3,0.74152786]
[1645991048479,1.2961675,2654.4,2654.3,0.74152786]
[1645991048680,1.2961675,2655.0,2654.3,0.74152786]
[1645991048881,1.2961675,2655.0,2654.7,1.39029702]
[1645991049079,0.35005699,2654.6,2654.2,0.1506]
[1645991049317,1.2961675,2654.5,2654.4,0.9423]
[1645991049922,0.13819996,2655.5,2654.4,0.9423]
[1645991049923,0.89053922,2655.3,2654.4,21.5869]
[1645991050121,1.74160438,2655.8,2654.6,5.0]
[1645991050122,0.89053922,2655.5,2654.6,5.0]
[1645991050326,1.31399474,2655.8,2654.8,5.0]
[1645991050327,0.89053922,2655.6,2654.8,5.0]
[1645991050521,1.31399474,2655.8,2654.8,5.0]
[1645991050522,0.89053922,2655.5,2654.8,5.9421446]
[1645991050723,0.89053922,2655.5,2654.9,12.2836]
[1645991051025,0.89053922,2655.6,2655.0,0.1506]
[1645991051223,1.31399474,2655.8,2654.5,1.37484638]
[1645991051224,0.89053922,2655.5,2654.5,3.89884638]
[1645991051425,0.89053922,2655.5,2654.2,0.25]
[1645991051426,0.89053922,2655.2,2654.2,0.25]
[1645991051625,0.3646,2655.1,2654.2,0.25]
[1645991051822,0.3146,2655.1,2654.3,0.1506]
[1645991052029,0.89053922,2655.0,2654.1,0.1506]
[1645991052324,0.89053922,2655.0,2654.6,1.1827392]
[1645991052525,0.56243642,2655.6,2654.0,1.1959]
[1645991052526,1.31399474,2655.3,2654.0,1.1959]
[1645991052724,1.31399474,2655.3,2653.8,2.7535]
[1645991052725,0.00669546,2654.8,2653.8,2.7535]
[1645991052974,0.00669546,2654.8,2653.9,0.1506]
[1645991053675,0.3646,2655.1,2653.9,0.1506]
[1645991053873,0.00669547,2654.5,2653.9,0.1506]
[1645991054678,0.32129547,2655.3,2654.0,13.9423836]
[1645991054877,0.32129547,2655.3,2654.1,0.1506]
[1645991055178,0.00669547,2654.3,2654.1,9.0152]
[1645991055376,0.00669547,2654.3,2654.1,2.61396007]
[1645991055687,3.61414079,2656.2,2654.1,2.61396007]
[1645991055688,1.77034904,2655.6,2654.3,20.0]
[1645991055880,0.01297392,2656.5,2655.3,5.0]
[1645991055881,0.59927766,2656.0,2655.3,5.0]
[1645991056083,0.1472,2656.5,2655.4,3.939]
[1645991056084,0.59927766,2656.3,2655.4,3.939]
[1645991056282,1.77164856,2656.6,2655.6,18.5]
[1645991056585,0.3646,2657.0,2656.2,5.0]
[1645991056586,1.77164856,2657.0,2656.2,5.0]
[1645991056858,1.77164856,2657.1,2656.3,1.74571507]
[1645991057045,1.77164856,2657.2,2656.3,0.439]
[1645991057247,1.77164856,2657.1,2656.2,0.1504]
[1645991057548,3.14425342,2658.1,2655.9,0.25]
[1645991057549,1.77164856,2656.9,2655.9,0.25]
[1645991057746,0.66335289,2656.0,2655.9,0.25]
[1645991057948,1.77164856,2656.6,2655.4,3.2996]
[1645991058151,0.66328299,2655.9,2655.4,2.8606]
[1645991058355,0.3646,2656.4,2655.3,0.3]
[1645991058651,1.77164856,2656.5,2655.2,0.3]
[1645991058652,0.3646,2656.5,2655.2,0.3]
[1645991058850,0.3646,2656.5,2655.1,3.1957]
[1645991059057,0.3646,2656.5,2654.9,0.25]
[1645991059058,0.3646,2656.3,2654.9,0.25]
[1645991059257,0.3646,2656.1,2654.9,0.25]
[1645991059457,0.3646,2656.1,2653.9,0.439]
[1645991059458,0.3646,2655.6,2653.9,0.439]
[1645991059654,0.3646,2655.4,2654.1,3.5]
[1645991059854,0.3646,2655.4,2653.9,0.25]
[1645991060463,0.3646,2655.2,2653.9,0.25]
[1645991061071,0.00669802,2654.8,2653.9,0.25]
[1645991062074,0.3646,2654.9,2653.9,0.25]
[1645991062280,0.00669792,2654.5,2653.9,0.25]
[1645991062476,0.00669792,2654.5,2654.4,1.26452679]
[1645991062672,0.07143448,2653.9,2653.8,2.9154]
[1645991062873,0.07143448,2653.9,2653.8,2.9048133]
[1645991063478,0.07143448,2653.9,2653.7,1.04046544]
[1645991065138,0.07143448,2653.9,2653.6,0.263]
[1645991066748,0.07143448,2653.9,2653.6,3.863]
[1645991067544,0.07143448,2653.9,2653.6,3.6]
[1645991067849,3.448e-05,2653.9,2653.7,0.439]
[1645991068083,1.24912113,2655.2,2653.8,15.5]
[1645991068282,0.00669642,2654.5,2653.8,15.5]
[1645991068688,0.00669642,2654.5,2653.8,15.8]
[1645991068885,0.00669642,2654.5,2653.9,0.1507]
[1645991069384,0.66335291,2655.2,2654.0,1.1737954]
[1645991069385,0.66335291,2654.9,2654.0,1.1737954]
[1645991069584,0.00669742,2654.5,2654.1,0.1506]
[1645991069986,1.08397168,2654.4,2654.1,0.1506]
[1645991070584,0.88452113,2655.3,2654.7,1.34254334]
[1645991070585,0.66335291,2655.1,2654.7,1.34254334]
[1645991070787,0.66335291,2655.2,2654.7,1.64254334]
[1645991070986,1.08364063,2655.1,2654.7,1.64254334]
[1645991071192,1.08364063,2655.0,2654.8,0.439]
[1645991071486,1.08364063,2654.9,2654.8,0.5896]
[1645991072114,1.08364063,2654.9,2654.8,0.439]
[1645991074116,4.063e-05,2654.9,2654.8,0.439]
[1645991074317,0.00669801,2655.0,2654.9,0.94203]
[1645991074515,0.00669801,2655.0,2654.9,0.439]
[1645991074715,0.00669801,2655.0,2654.9,0.739]
[1645991075116,9.801e-05,2655.0,2654.9,10.52298491]
[1645991075316,0.66335291,2655.6,2654.9,10.52298491]
[1645991075574,0.13819996,2656.2,2655.0,0.439]
[1645991075575,0.00669801,2655.1,2655.0,0.439]
[1645991075976,0.62005092,2655.8,2655.1,31.8512]
[1645991076184,0.88452113,2656.3,2655.3,11.8446]
[1645991076383,0.88452113,2656.3,2656.0,1.2771597]
[1645991076577,0.16569014,2655.7,2655.6,1.4241112]
[1645991076775,0.16569014,2655.7,2655.6,2.8049019]
[1645991076977,0.16569014,2655.7,2655.6,1.8631112]
[1645991077179,9.014e-05,2655.7,2655.6,0.439]
[1645991077378,9.014e-05,2655.7,2655.6,0.739]
[1645991077579,9.014e-05,2655.7,2655.6,11.48]
[1645991077879,1.13342113,2656.5,2655.8,10.90958788]
[1645991078077,0.2489,2656.5,2655.8,0.3646]